[Event "Titled Tuesday Blitz January 03 Late 2023"]
[White "Mei, Austin"]
[Black "Donskov, Anatoly"]
[WhiteFideId "30948479"]
[BlackFideId "24143413"]
[WhiteElo "2218"]
[BlackElo "2279"]
[Result "1-0"]
[Round "11"]
[TimeControl "180+2"]
[Date "2023.01.03"]
[WhiteClock "0:00:11"]
[BlackClock "0:00:01"]

1. e4 {[%clk 0:03:00]}  c5 {[%clk 0:03:00]} 2. Nf3 {[%clk 0:02:59]}  Nc6 {[%clk 0:03:00]} 3. d4 {[%clk 0:02:58]}  cxd4 {[%clk 0:03:01]} 4. Nxd4 {[%clk 0:02:59]}  Nf6 {[%clk 0:03:02]} 5. Nc3 {[%clk 0:02:58]}  d6 {[%clk 0:03:02]} 6. Bg5 {[%clk 0:02:57]}  Bd7 {[%clk 0:03:02]} 7. Qd2 {[%clk 0:02:55]}  Nxd4 {[%clk 0:02:09]} 8. Qxd4 {[%clk 0:02:53]}  a6 {[%clk 0:02:09]} 9. O-O-O {[%clk 0:02:52]}  e6 {[%clk 0:02:09]} 10. h4 {[%clk 0:02:44]}  h6 {[%clk 0:02:07]} 11. Be3 {[%clk 0:02:43]}  Ng4 {[%clk 0:02:07]} 12. Bd2 {[%clk 0:02:42]}  Qc7 {[%clk 0:02:03]} 13. f3 {[%clk 0:02:42]}  Ne5 {[%clk 0:02:03]} 14. Be3 {[%clk 0:02:34]}  Nc6 {[%clk 0:02:02]} 15. Qd2 {[%clk 0:02:34]}  Be7 {[%clk 0:02:02]} 16. Bd3 {[%clk 0:02:34]}  Ne5 {[%clk 0:02:01]} 17. Kb1 {[%clk 0:02:33]}  Nc4 {[%clk 0:02:01]} 18. Bxc4 {[%clk 0:02:33]}  Qxc4 {[%clk 0:02:02]} 19. g4 {[%clk 0:02:33]}  b5 {[%clk 0:02:02]} 20. Ne2 {[%clk 0:02:32]}  Rc8 {[%clk 0:01:59]} 21. Nd4 {[%clk 0:02:27]}  h5 {[%clk 0:01:48]} 22. Bg5 {[%clk 0:02:17]}  f6 {[%clk 0:01:46]} 23. Be3 {[%clk 0:02:15]}  hxg4 {[%clk 0:01:46]} 24. fxg4 {[%clk 0:02:15]}  d5 {[%clk 0:01:37]} 25. exd5 {[%clk 0:02:12]}  Qxd5 {[%clk 0:01:37]} 26. Qf2 {[%clk 0:02:02]}  Qe4 {[%clk 0:01:31]} 27. Rhg1 {[%clk 0:01:08]}  e5 {[%clk 0:01:23]} 28. Nf5 {[%clk 0:01:07]}  Bxf5 {[%clk 0:01:23]} 29. gxf5 {[%clk 0:01:07]}  Bf8 {[%clk 0:01:14]} 30. Qd2 {[%clk 0:00:32]}  Qxf5 {[%clk 0:01:13]} 31. Qd5 {[%clk 0:00:29]}  Qxc2+ {[%clk 0:01:13]} 32. Ka1 {[%clk 0:00:29]}  Qc6 {[%clk 0:01:10]} 33. Qb3 {[%clk 0:00:25]}  Rxh4 {[%clk 0:01:08]} 34. Rc1 {[%clk 0:00:16]}  Rc4 {[%clk 0:01:08]} 35. Rcd1 {[%clk 0:00:12]}  Qe6 {[%clk 0:01:00]} 36. Qd3 {[%clk 0:00:11]}  Bc5 {[%clk 0:00:53]} 37. Bxc5 {[%clk 0:00:10]}  R4xc5 {[%clk 0:00:53]} 38. Qg6+ {[%clk 0:00:10]}  Qf7 {[%clk 0:00:53]} 39. Qh7 {[%clk 0:00:08]}  g5 {[%clk 0:00:39]} 40. Qf5 {[%clk 0:00:06]}  Rd8 {[%clk 0:00:19]} 41. a3 {[%clk 0:00:06]}  Rcd5 {[%clk 0:00:18]} 42. Rc1 {[%clk 0:00:06]}  R5d6 {[%clk 0:00:17]} 43. Qe4 {[%clk 0:00:06]}  Kf8 {[%clk 0:00:15]} 44. Rh1 {[%clk 0:00:06]}  Qg7 {[%clk 0:00:02]} 45. Rh7 {[%clk 0:00:06]}  Qg8 {[%clk 0:00:03]} 46. Qf5 {[%clk 0:00:04]}  Re6 {[%clk 0:00:01]} 47. Rh6 {[%clk 0:00:04]}  Qg7 {[%clk 0:00:01]} 48. Rh7 {[%clk 0:00:04]}  Qg8 {[%clk 0:00:01]} 49. Rh6 {[%clk 0:00:05]}  Rde8 {[%clk 0:00:02]} 50. Rxf6+ {[%clk 0:00:05]}  Rxf6 {[%clk 0:00:02]} 51. Qxf6+ {[%clk 0:00:06]}  Qf7 {[%clk 0:00:03]} 52. Qxg5 {[%clk 0:00:06]}  Re6 {[%clk 0:00:03]} 53. Rc8+ {[%clk 0:00:06]}  Re8 {[%clk 0:00:03]} 54. Rc6 {[%clk 0:00:06]}  e4 {[%clk 0:00:02]} 55. Rf6 {[%clk 0:00:06]}  e3 {[%clk 0:00:02]} 56. Rxf7+ {[%clk 0:00:06]}  Kxf7 {[%clk 0:00:03]} 57. Qg1 {[%clk 0:00:07]}  e2 {[%clk 0:00:03]} 58. Qe1 {[%clk 0:00:08]}  Re6 {[%clk 0:00:02]} 59. Kb1 {[%clk 0:00:08]}  Ke7 {[%clk 0:00:02]} 60. Kc2 {[%clk 0:00:09]}  Kd6 {[%clk 0:00:03]} 61. Kd2 {[%clk 0:00:09]}  Re5 {[%clk 0:00:03]} 62. Qg3 {[%clk 0:00:08]}  e1=Q+ {[%clk 0:00:03]} 63. Qxe1 {[%clk 0:00:09]}  Rxe1 {[%clk 0:00:03]} 64. Kxe1 {[%clk 0:00:10]}  Kd5 {[%clk 0:00:04]} 65. Kd2 {[%clk 0:00:10]}  Kc4 {[%clk 0:00:05]} 66. Kc2 {[%clk 0:00:11]}  a5 {[%clk 0:00:05]} 67. b3+ {[%clk 0:00:10]}  Kd4 {[%clk 0:00:06]} 68. Kd2 {[%clk 0:00:11]}  b4 {[%clk 0:00:05]} 69. a4 {[%clk 0:00:11]}  Ke4 {[%clk 0:00:04]} 70. Ke2 {[%clk 0:00:12]}  Ke5 {[%clk 0:00:04]} 71. Ke3 {[%clk 0:00:12]}  Ke6 {[%clk 0:00:01]} 72. Ke4 {[%clk 0:00:10]}  Kd6 {[%clk 0:00:01]} 73. Kd4 {[%clk 0:00:11]} 1-0


[Site "https://www.chess.com"]

[Event "Titled Tuesday Blitz January 03 Late 2023"]
[White "Berezin, Viktor"]
[Black "Novikova, Galina"]
[WhiteFideId "14107872"]
[BlackFideId "4157095"]
[WhiteElo "2307"]
[BlackElo "2073"]
[Result "0-1"]
[Round "11"]
[TimeControl "180+2"]
[Date "2023.01.03"]
[WhiteClock "0:00:03"]
[BlackClock "0:00:17"]

1. d4 {[%clk 0:02:59]}  e6 {[%clk 0:03:00]} 2. Nf3 {[%clk 0:02:56]}  f5 {[%clk 0:03:01]} 3. g3 {[%clk 0:02:56]}  Nf6 {[%clk 0:03:02]} 4. Bg2 {[%clk 0:02:57]}  Be7 {[%clk 0:03:03]} 5. O-O {[%clk 0:02:58]}  O-O {[%clk 0:03:04]} 6. c4 {[%clk 0:02:58]}  d6 {[%clk 0:03:05]} 7. Nc3 {[%clk 0:02:58]}  Qe8 {[%clk 0:03:05]} 8. Rb1 {[%clk 0:02:58]}  Qh5 {[%clk 0:03:00]} 9. b4 {[%clk 0:02:57]}  Nbd7 {[%clk 0:02:51]} 10. b5 {[%clk 0:02:56]}  e5 {[%clk 0:02:46]} 11. dxe5 {[%clk 0:02:44]}  dxe5 {[%clk 0:02:47]} 12. Nd5 {[%clk 0:02:43]}  Bd6 {[%clk 0:02:41]} 13. Nxf6+ {[%clk 0:01:55]}  Nxf6 {[%clk 0:02:36]} 14. c5 {[%clk 0:01:52]}  Bxc5 {[%clk 0:02:31]} 15. Nxe5 {[%clk 0:01:52]}  Bd6 {[%clk 0:02:26]} 16. Qb3+ {[%clk 0:01:43]}  Kh8 {[%clk 0:02:24]} 17. Nf3 {[%clk 0:01:43]}  f4 {[%clk 0:02:20]} 18. Ba3 {[%clk 0:01:37]}  fxg3 {[%clk 0:02:17]} 19. fxg3 {[%clk 0:01:27]}  Bc5+ {[%clk 0:02:07]} 20. Bxc5 {[%clk 0:01:10]}  Qxc5+ {[%clk 0:02:06]} 21. e3 {[%clk 0:01:11]}  Bg4 {[%clk 0:01:50]} 22. Rbc1 {[%clk 0:01:04]}  Qe7 {[%clk 0:01:44]} 23. Nd4 {[%clk 0:00:56]}  Rab8 {[%clk 0:01:26]} 24. h3 {[%clk 0:00:47]}  Bd7 {[%clk 0:01:22]} 25. Kh2 {[%clk 0:00:46]}  c6 {[%clk 0:01:03]} 26. bxc6 {[%clk 0:00:44]}  bxc6 {[%clk 0:01:04]} 27. Qd3 {[%clk 0:00:37]}  Rbc8 {[%clk 0:01:04]} 28. Nf5 {[%clk 0:00:33]}  Qe5 {[%clk 0:01:03]} 29. Qd4 {[%clk 0:00:26]}  Qe6 {[%clk 0:00:52]} 30. Qd6 {[%clk 0:00:20]}  Qe8 {[%clk 0:00:44]} 31. Ne7 {[%clk 0:00:18]}  Rd8 {[%clk 0:00:42]} 32. Nxc6 {[%clk 0:00:18]}  Bxc6 {[%clk 0:00:41]} 33. Qxc6 {[%clk 0:00:19]}  Qxe3 {[%clk 0:00:41]} 34. Rce1 {[%clk 0:00:15]}  Qd2 {[%clk 0:00:40]} 35. Qa4 {[%clk 0:00:13]}  Qh6 {[%clk 0:00:37]} 36. Kg1 {[%clk 0:00:10]}  Qg6 {[%clk 0:00:35]} 37. Kh2 {[%clk 0:00:10]}  Qh6 {[%clk 0:00:33]} 38. Kg1 {[%clk 0:00:09]}  Qg5 {[%clk 0:00:29]} 39. Qa3 {[%clk 0:00:09]}  a5 {[%clk 0:00:27]} 40. Kh2 {[%clk 0:00:08]}  h6 {[%clk 0:00:26]} 41. Qf3 {[%clk 0:00:07]}  Rd2 {[%clk 0:00:23]} 42. Qc6 {[%clk 0:00:03]}  Rfd8 {[%clk 0:00:22]} 43. Re7 {[%clk 0:00:03]}  R2d3 {[%clk 0:00:21]} 44. g4 {[%clk 0:00:02]}  Qh4 {[%clk 0:00:17]} 45. Rf3 {[%clk 0:00:02]}  Nxg4+ {[%clk 0:00:17]} 46. Kg1 {[%clk 0:00:02]}  Rd1+ {[%clk 0:00:18]} 47. Rf1 {[%clk 0:00:03]}  Qf2+ {[%clk 0:00:15]} 48. Kh1 {[%clk 0:00:03]}  Rxf1+ {[%clk 0:00:16]} 49. Bxf1 {[%clk 0:00:03]}  Qxf1# {[%clk 0:00:17]} 0-1


[Site "https://www.chess.com"]

[Event "Titled Tuesday Blitz January 03 Late 2023"]
[White "ArchibaldCerveza29"]
[Black "Kalajzic, Ivan"]
[BlackFideId "14506378"]
[WhiteElo "2509"]
[BlackElo "2062"]
[Result "0-1"]
[Round "11"]
[TimeControl "180+2"]
[Date "2023.01.03"]
[WhiteClock "0:00:01"]
[BlackClock "0:00:25"]

1. d4 {[%clk 0:03:00]}  d5 {[%clk 0:02:59]} 2. c4 {[%clk 0:03:00]}  Nc6 {[%clk 0:02:59]} 3. Nf3 {[%clk 0:02:58]}  Bg4 {[%clk 0:02:58]} 4. cxd5 {[%clk 0:02:53]}  Bxf3 {[%clk 0:02:58]} 5. gxf3 {[%clk 0:02:54]}  Qxd5 {[%clk 0:02:58]} 6. e3 {[%clk 0:02:54]}  e5 {[%clk 0:02:58]} 7. Nc3 {[%clk 0:02:55]}  Bb4 {[%clk 0:02:58]} 8. Bd2 {[%clk 0:02:55]}  Bxc3 {[%clk 0:02:58]} 9. bxc3 {[%clk 0:02:55]}  Nf6 {[%clk 0:02:58]} 10. Rb1 {[%clk 0:02:48]}  b6 {[%clk 0:02:54]} 11. Bd3 {[%clk 0:02:36]}  O-O {[%clk 0:02:43]} 12. Rg1 {[%clk 0:02:32]}  exd4 {[%clk 0:02:38]} 13. cxd4 {[%clk 0:02:31]}  Rfe8 {[%clk 0:02:34]} 14. Kf1 {[%clk 0:02:31]}  Rad8 {[%clk 0:02:22]} 15. Bc3 {[%clk 0:02:21]}  Qh5 {[%clk 0:02:11]} 16. Rg2 {[%clk 0:02:18]}  Ne7 {[%clk 0:02:04]} 17. Rb5 {[%clk 0:02:14]}  c5 {[%clk 0:01:58]} 18. dxc5 {[%clk 0:01:57]}  Ned5 {[%clk 0:01:54]} 19. Bd2 {[%clk 0:01:40]}  Nf4 {[%clk 0:01:32]} 20. cxb6 {[%clk 0:01:05]}  Qh3 {[%clk 0:01:21]} 21. exf4 {[%clk 0:01:05]}  Rxd3 {[%clk 0:01:19]} 22. b7 {[%clk 0:00:51]}  Rdd8 {[%clk 0:00:52]} 23. Qb3 {[%clk 0:00:27]}  Qd7 {[%clk 0:00:41]} 24. b8=Q {[%clk 0:00:18]}  Qxd2 {[%clk 0:00:41]} 25. Qe5 {[%clk 0:00:01]}  Qd1+ {[%clk 0:00:36]} 26. Qxd1 {[%clk 0:00:01]}  Rxd1+ {[%clk 0:00:36]} 27. Ke2 {[%clk 0:00:01]}  Rdd8 {[%clk 0:00:25]} 0-1


[Site "https://www.chess.com"]

[Event "Titled Tuesday Blitz January 03 Late 2023"]
[White "Fisher_TheGalactic"]
[Black "Torres Dominguez, David"]
[BlackFideId "2220857"]
[WhiteElo "2492"]
[BlackElo "1994"]
[Result "0-1"]
[Round "11"]
[TimeControl "180+2"]
[Date "2023.01.03"]
[WhiteClock "0:00:01"]
[BlackClock "0:00:06"]

1. Nf3 {[%clk 0:02:57]}  d5 {[%clk 0:02:59]} 2. g3 {[%clk 0:02:56]}  c6 {[%clk 0:02:58]} 3. d4 {[%clk 0:02:57]}  Nf6 {[%clk 0:02:56]} 4. Bg2 {[%clk 0:02:56]}  Bf5 {[%clk 0:02:49]} 5. O-O {[%clk 0:02:56]}  e6 {[%clk 0:02:46]} 6. Nbd2 {[%clk 0:02:54]}  Be7 {[%clk 0:02:44]} 7. c3 {[%clk 0:02:52]}  h6 {[%clk 0:02:41]} 8. Ne5 {[%clk 0:02:51]}  O-O {[%clk 0:02:31]} 9. Ndf3 {[%clk 0:02:48]}  Nfd7 {[%clk 0:02:22]} 10. h4 {[%clk 0:02:46]}  Nxe5 {[%clk 0:02:16]} 11. Nxe5 {[%clk 0:02:47]}  Nd7 {[%clk 0:02:14]} 12. f4 {[%clk 0:02:44]}  Nf6 {[%clk 0:02:10]} 13. e3 {[%clk 0:02:40]}  Be4 {[%clk 0:02:02]} 14. g4 {[%clk 0:02:38]}  Bxg2 {[%clk 0:01:57]} 15. Kxg2 {[%clk 0:02:39]}  Ne4 {[%clk 0:01:57]} 16. g5 {[%clk 0:02:30]}  f6 {[%clk 0:01:48]} 17. Ng6 {[%clk 0:02:24]}  Rf7 {[%clk 0:01:48]} 18. Nxe7+ {[%clk 0:02:22]}  Rxe7 {[%clk 0:01:44]} 19. Qg4 {[%clk 0:01:56]}  Qe8 {[%clk 0:01:44]} 20. b3 {[%clk 0:01:20]}  f5 {[%clk 0:01:28]} 21. Qf3 {[%clk 0:01:16]}  h5 {[%clk 0:01:21]} 22. Bb2 {[%clk 0:01:10]}  g6 {[%clk 0:01:20]} 23. Rfd1 {[%clk 0:01:08]}  a5 {[%clk 0:01:16]} 24. a4 {[%clk 0:01:05]}  b5 {[%clk 0:01:13]} 25. Qf1 {[%clk 0:00:41]}  Rb7 {[%clk 0:01:09]} 26. axb5 {[%clk 0:00:37]}  Rxb5 {[%clk 0:00:58]} 27. Ra3 {[%clk 0:00:36]}  Qb8 {[%clk 0:00:53]} 28. Rda1 {[%clk 0:00:16]}  Rxb3 {[%clk 0:00:45]} 29. Bc1 {[%clk 0:00:16]}  Rxa3 {[%clk 0:00:40]} 30. Rxa3 {[%clk 0:00:17]}  Qb1 {[%clk 0:00:34]} 31. c4 {[%clk 0:00:15]}  Qc2+ {[%clk 0:00:31]} 32. Kf3 {[%clk 0:00:11]}  Qh2 {[%clk 0:00:20]} 33. Qg2 {[%clk 0:00:09]}  Qxh4 {[%clk 0:00:16]} 34. cxd5 {[%clk 0:00:06]}  Qe1 {[%clk 0:00:09]} 35. dxe6 {[%clk 0:00:03]}  Qxc1 {[%clk 0:00:08]} 36. Rd3 {[%clk 0:00:02]}  Qc4 {[%clk 0:00:06]} 37. Qe2 {[%clk 0:00:01]}  Qd5 {[%clk 0:00:06]} 0-1


[Site "https://www.chess.com"]

[Event "Titled Tuesday Blitz January 03 Late 2023"]
[White "Fernandez Garcia, Gumersindo"]
[Black "Kujawski, Adam"]
[WhiteFideId "24516740"]
[BlackFideId "1100920"]
[WhiteElo "2160"]
[BlackElo "2173"]
[Result "0-1"]
[Round "11"]
[TimeControl "180+2"]
[Date "2023.01.03"]
[WhiteClock "0:01:27"]
[BlackClock "0:00:27"]

1. e4 {[%clk 0:03:00]}  e5 {[%clk 0:02:59]} 2. Nf3 {[%clk 0:02:59]}  Nc6 {[%clk 0:02:59]} 3. d4 {[%clk 0:02:56]}  exd4 {[%clk 0:02:59]} 4. Bc4 {[%clk 0:02:54]}  Nf6 {[%clk 0:02:58]} 5. e5 {[%clk 0:02:52]}  Ne4 {[%clk 0:02:58]} 6. O-O {[%clk 0:02:48]}  Be7 {[%clk 0:02:56]} 7. Re1 {[%clk 0:02:45]}  d5 {[%clk 0:02:25]} 8. Bb5 {[%clk 0:02:41]}  O-O {[%clk 0:02:24]} 9. Nxd4 {[%clk 0:02:35]}  Nxd4 {[%clk 0:02:21]} 10. Qxd4 {[%clk 0:02:29]}  Bc5 {[%clk 0:02:19]} 11. Rxe4 {[%clk 0:02:06]}  Bxd4 {[%clk 0:02:14]} 12. Rxd4 {[%clk 0:02:07]}  c6 {[%clk 0:02:03]} 13. Bf1 {[%clk 0:02:05]}  Bf5 {[%clk 0:01:59]} 14. c3 {[%clk 0:02:02]}  f6 {[%clk 0:01:48]} 15. exf6 {[%clk 0:01:59]}  Qxf6 {[%clk 0:01:47]} 16. Be3 {[%clk 0:01:57]}  Rae8 {[%clk 0:01:38]} 17. Nd2 {[%clk 0:01:56]}  Be4 {[%clk 0:00:50]} 18. Nxe4 {[%clk 0:01:51]}  Rxe4 {[%clk 0:00:48]} 19. Rxe4 {[%clk 0:01:48]}  dxe4 {[%clk 0:00:48]} 20. Bc4+ {[%clk 0:01:48]}  Kh8 {[%clk 0:00:48]} 21. Rd1 {[%clk 0:01:49]}  Rd8 {[%clk 0:00:43]} 22. Bd4 {[%clk 0:01:40]}  c5 {[%clk 0:00:35]} 23. Bxf6 {[%clk 0:01:36]}  Rxd1+ {[%clk 0:00:35]} 24. Bf1 {[%clk 0:01:37]}  gxf6 {[%clk 0:00:36]} 25. g3 {[%clk 0:01:34]}  Rd2 {[%clk 0:00:32]} 26. Bg2 {[%clk 0:01:33]}  f5 {[%clk 0:00:32]} 27. g4 {[%clk 0:01:33]}  Rd1+ {[%clk 0:00:30]} 28. Bf1 {[%clk 0:01:30]}  f4 {[%clk 0:00:30]} 29. Kg2 {[%clk 0:01:28]}  Rd2 {[%clk 0:00:28]} 30. b3 {[%clk 0:01:27]}  e3 {[%clk 0:00:27]} 0-1


[Site "https://www.chess.com"]

[Event "Titled Tuesday Blitz January 03 Late 2023"]
[White "Novikov, Evgenij"]
[Black "Erdogdu, Mert"]
[WhiteFideId "4125380"]
[BlackFideId "6301495"]
[WhiteElo "2276"]
[BlackElo "2413"]
[Result "1/2-1/2"]
[Round "11"]
[TimeControl "180+2"]
[Date "2023.01.03"]
[WhiteClock "0:00:05"]
[BlackClock "0:00:10"]

1. Nf3 {[%clk 0:02:59]}  d5 {[%clk 0:02:59]} 2. d4 {[%clk 0:02:57]}  e6 {[%clk 0:03:00]} 3. c4 {[%clk 0:02:56]}  c5 {[%clk 0:03:00]} 4. e3 {[%clk 0:02:54]}  Nf6 {[%clk 0:03:00]} 5. Nc3 {[%clk 0:02:53]}  a6 {[%clk 0:03:00]} 6. cxd5 {[%clk 0:02:52]}  exd5 {[%clk 0:03:01]} 7. Be2 {[%clk 0:02:53]}  Nc6 {[%clk 0:02:58]} 8. O-O {[%clk 0:02:52]}  Bd6 {[%clk 0:02:55]} 9. dxc5 {[%clk 0:02:51]}  Bxc5 {[%clk 0:02:56]} 10. a3 {[%clk 0:02:50]}  O-O {[%clk 0:02:56]} 11. b4 {[%clk 0:02:50]}  Ba7 {[%clk 0:02:57]} 12. Bb2 {[%clk 0:02:50]}  Bg4 {[%clk 0:02:49]} 13. h3 {[%clk 0:02:49]}  Bh5 {[%clk 0:02:48]} 14. Na4 {[%clk 0:02:43]}  Ne4 {[%clk 0:02:45]} 15. Rc1 {[%clk 0:02:35]}  Re8 {[%clk 0:02:42]} 16. Nc5 {[%clk 0:02:21]}  Bxc5 {[%clk 0:02:30]} 17. bxc5 {[%clk 0:02:19]}  Qd7 {[%clk 0:02:03]} 18. Nd4 {[%clk 0:02:05]}  Bxe2 {[%clk 0:02:01]} 19. Qxe2 {[%clk 0:02:05]}  Ne5 {[%clk 0:01:47]} 20. Rfd1 {[%clk 0:01:45]}  Rad8 {[%clk 0:01:41]} 21. c6 {[%clk 0:01:13]}  bxc6 {[%clk 0:01:40]} 22. Qxa6 {[%clk 0:01:13]}  Ra8 {[%clk 0:01:20]} 23. Qe2 {[%clk 0:01:07]}  Nc4 {[%clk 0:01:10]} 24. Nf3 {[%clk 0:00:54]}  Qf5 {[%clk 0:00:46]} 25. Rxc4 {[%clk 0:00:24]}  dxc4 {[%clk 0:00:46]} 26. Qxc4 {[%clk 0:00:25]}  Qb5 {[%clk 0:00:32]} 27. Qxb5 {[%clk 0:00:23]}  cxb5 {[%clk 0:00:32]} 28. Nd4 {[%clk 0:00:24]}  Red8 {[%clk 0:00:29]} 29. Rc1 {[%clk 0:00:22]}  Rac8 {[%clk 0:00:28]} 30. Rxc8 {[%clk 0:00:18]}  Rxc8 {[%clk 0:00:29]} 31. Nxb5 {[%clk 0:00:18]}  Rc2 {[%clk 0:00:27]} 32. Bd4 {[%clk 0:00:18]}  Nxf2 {[%clk 0:00:25]} 33. a4 {[%clk 0:00:16]}  Ne4 {[%clk 0:00:23]} 34. a5 {[%clk 0:00:16]}  Ra2 {[%clk 0:00:23]} 35. Bb6 {[%clk 0:00:15]}  f5 {[%clk 0:00:21]} 36. Nc7 {[%clk 0:00:15]}  Nd6 {[%clk 0:00:15]} 37. a6 {[%clk 0:00:14]}  Nc8 {[%clk 0:00:15]} 38. Bd4 {[%clk 0:00:12]}  Kf7 {[%clk 0:00:15]} 39. Kh2 {[%clk 0:00:09]}  g5 {[%clk 0:00:15]} 40. Kg3 {[%clk 0:00:09]}  h6 {[%clk 0:00:15]} 41. h4 {[%clk 0:00:09]}  Ke7 {[%clk 0:00:14]} 42. hxg5 {[%clk 0:00:09]}  hxg5 {[%clk 0:00:15]} 43. Kf3 {[%clk 0:00:10]}  Kd6 {[%clk 0:00:15]} 44. Ne8+ {[%clk 0:00:10]}  Kd5 {[%clk 0:00:15]} 45. Ng7 {[%clk 0:00:10]}  Nd6 {[%clk 0:00:14]} 46. a7 {[%clk 0:00:09]}  Ra6 {[%clk 0:00:09]} 47. g4 {[%clk 0:00:08]}  fxg4+ {[%clk 0:00:09]} 48. Kxg4 {[%clk 0:00:09]}  Nb5 {[%clk 0:00:08]} 49. Nf5 {[%clk 0:00:08]}  Nxa7 {[%clk 0:00:07]} 50. Bxa7 {[%clk 0:00:07]}  Rxa7 {[%clk 0:00:07]} 51. Kxg5 {[%clk 0:00:08]}  Ke4 {[%clk 0:00:08]} 52. Ng3+ {[%clk 0:00:04]}  Kf3 {[%clk 0:00:08]} 53. Nf5 {[%clk 0:00:04]}  Ra5 {[%clk 0:00:08]} 54. Kf6 {[%clk 0:00:04]}  Ke4 {[%clk 0:00:09]} 55. Nd6+ {[%clk 0:00:04]}  Kxe3 {[%clk 0:00:09]} 56. Nc4+ {[%clk 0:00:05]}  Kd4 {[%clk 0:00:10]} 57. Nxa5 {[%clk 0:00:05]} 1/2-1/2


[Site "https://www.chess.com"]

[Event "Titled Tuesday Blitz January 03 Late 2023"]
[White "Dinu, Dumitru-Daniel"]
[Black "Golubev, Mikhail"]
[WhiteFideId "1208403"]
[BlackFideId "14100983"]
[WhiteElo "2203"]
[BlackElo "2461"]
[Result "0-1"]
[Round "11"]
[TimeControl "180+2"]
[Date "2023.01.03"]
[WhiteClock "0:00:18"]
[BlackClock "0:00:17"]

1. e4 {[%clk 0:03:00]}  c5 {[%clk 0:02:59]} 2. Be2 {[%clk 0:02:59]}  Nc6 {[%clk 0:02:58]} 3. f4 {[%clk 0:02:57]}  d5 {[%clk 0:02:58]} 4. d3 {[%clk 0:02:57]}  dxe4 {[%clk 0:02:52]} 5. dxe4 {[%clk 0:02:57]}  Qxd1+ {[%clk 0:02:52]} 6. Bxd1 {[%clk 0:02:57]}  Nf6 {[%clk 0:02:52]} 7. Nd2 {[%clk 0:02:55]}  e5 {[%clk 0:02:50]} 8. Ngf3 {[%clk 0:02:52]}  exf4 {[%clk 0:02:46]} 9. O-O {[%clk 0:02:52]}  Be7 {[%clk 0:02:41]} 10. Re1 {[%clk 0:02:21]}  Ng4 {[%clk 0:02:26]} 11. Nb3 {[%clk 0:02:07]}  g5 {[%clk 0:02:03]} 12. h4 {[%clk 0:02:02]}  h6 {[%clk 0:01:59]} 13. hxg5 {[%clk 0:01:48]}  hxg5 {[%clk 0:02:00]} 14. Bd2 {[%clk 0:01:42]}  Be6 {[%clk 0:01:52]} 15. Bc3 {[%clk 0:01:35]}  Rg8 {[%clk 0:01:50]} 16. Be2 {[%clk 0:01:23]}  Ne3 {[%clk 0:01:42]} 17. Rac1 {[%clk 0:01:21]}  O-O-O {[%clk 0:01:29]} 18. Bb5 {[%clk 0:01:17]}  c4 {[%clk 0:00:42]} 19. Nbd4 {[%clk 0:01:09]}  Nxd4 {[%clk 0:00:41]} 20. Bxd4 {[%clk 0:01:06]}  a6 {[%clk 0:00:40]} 21. Bxe3 {[%clk 0:00:42]}  fxe3 {[%clk 0:00:39]} 22. Bxa6 {[%clk 0:00:34]}  bxa6 {[%clk 0:00:39]} 23. Kf1 {[%clk 0:00:31]}  g4 {[%clk 0:00:36]} 24. Ne5 {[%clk 0:00:28]}  Bf6 {[%clk 0:00:32]} 25. Nc6 {[%clk 0:00:26]}  Rd6 {[%clk 0:00:30]} 26. Na5 {[%clk 0:00:24]}  Bg5 {[%clk 0:00:25]} 27. Re2 {[%clk 0:00:20]}  g3 {[%clk 0:00:24]} 28. e5 {[%clk 0:00:19]}  Rd4 {[%clk 0:00:20]} 29. b3 {[%clk 0:00:19]}  Rf4+ {[%clk 0:00:18]} 30. Ke1 {[%clk 0:00:18]}  Rh8 {[%clk 0:00:17]} 0-1


[Site "https://www.chess.com"]

[Event "Titled Tuesday Blitz January 03 Late 2023"]
[White "Karttunen, Mika"]
[Black "Seletsky, Grigory"]
[WhiteFideId "502081"]
[BlackFideId "14112191"]
[WhiteElo "2490"]
[BlackElo "2259"]
[Result "1/2-1/2"]
[Round "11"]
[TimeControl "180+2"]
[Date "2023.01.03"]
[WhiteClock "0:00:05"]
[BlackClock "0:00:04"]

1. d4 {[%clk 0:03:00]}  d6 {[%clk 0:02:59]} 2. e4 {[%clk 0:02:59]}  Nf6 {[%clk 0:02:57]} 3. f3 {[%clk 0:02:56]}  e5 {[%clk 0:02:54]} 4. dxe5 {[%clk 0:02:46]}  dxe5 {[%clk 0:02:54]} 5. Qxd8+ {[%clk 0:02:46]}  Kxd8 {[%clk 0:02:54]} 6. Be3 {[%clk 0:02:38]}  Bd6 {[%clk 0:02:52]} 7. Nd2 {[%clk 0:02:38]}  Be6 {[%clk 0:02:50]} 8. Nc4 {[%clk 0:02:35]}  Ke7 {[%clk 0:02:46]} 9. O-O-O {[%clk 0:02:32]}  Nc6 {[%clk 0:02:40]} 10. a3 {[%clk 0:02:28]}  h6 {[%clk 0:02:37]} 11. g4 {[%clk 0:02:25]}  a6 {[%clk 0:02:37]} 12. h4 {[%clk 0:02:15]}  b5 {[%clk 0:02:36]} 13. Nxd6 {[%clk 0:02:03]}  cxd6 {[%clk 0:02:36]} 14. Rh2 {[%clk 0:01:59]}  Rhd8 {[%clk 0:02:17]} 15. g5 {[%clk 0:01:52]}  Ng8 {[%clk 0:02:11]} 16. Rhd2 {[%clk 0:01:41]}  f5 {[%clk 0:01:59]} 17. Bh3 {[%clk 0:01:21]}  f4 {[%clk 0:01:54]} 18. Bb6 {[%clk 0:01:18]}  Rd7 {[%clk 0:01:53]} 19. Bxe6 {[%clk 0:01:08]}  Kxe6 {[%clk 0:01:52]} 20. Ne2 {[%clk 0:01:08]}  hxg5 {[%clk 0:01:34]} 21. hxg5 {[%clk 0:01:07]}  Nge7 {[%clk 0:01:33]} 22. Nc3 {[%clk 0:01:05]}  Rh8 {[%clk 0:01:10]} 23. Nd5 {[%clk 0:00:59]}  Nc8 {[%clk 0:01:09]} 24. Bg1 {[%clk 0:00:32]}  Rh3 {[%clk 0:01:04]} 25. Rf1 {[%clk 0:00:31]}  Rg3 {[%clk 0:01:03]} 26. Rh2 {[%clk 0:00:17]}  Rxg5 {[%clk 0:01:02]} 27. Rh8 {[%clk 0:00:15]}  N8e7 {[%clk 0:00:52]} 28. Ra8 {[%clk 0:00:14]}  Nxd5 {[%clk 0:00:29]} 29. exd5+ {[%clk 0:00:14]}  Kxd5 {[%clk 0:00:30]} 30. Rxa6 {[%clk 0:00:14]}  Rc7 {[%clk 0:00:19]} 31. Rd1+ {[%clk 0:00:14]}  Ke6 {[%clk 0:00:18]} 32. Bb6 {[%clk 0:00:11]}  Rc8 {[%clk 0:00:17]} 33. Kb1 {[%clk 0:00:09]}  Rg3 {[%clk 0:00:16]} 34. Rd3 {[%clk 0:00:09]}  g5 {[%clk 0:00:15]} 35. Bf2 {[%clk 0:00:09]}  Rg2 {[%clk 0:00:14]} 36. Ba7 {[%clk 0:00:07]}  g4 {[%clk 0:00:14]} 37. fxg4 {[%clk 0:00:06]}  Rxg4 {[%clk 0:00:13]} 38. Rh3 {[%clk 0:00:06]}  Rg6 {[%clk 0:00:12]} 39. Bf2 {[%clk 0:00:05]}  e4 {[%clk 0:00:10]} 40. Rb6 {[%clk 0:00:05]}  e3 {[%clk 0:00:10]} 41. Bxe3 {[%clk 0:00:05]}  fxe3 {[%clk 0:00:09]} 42. Rxe3+ {[%clk 0:00:06]}  Ne5 {[%clk 0:00:09]} 43. Rxb5 {[%clk 0:00:06]}  Rg1+ {[%clk 0:00:08]} 44. Ka2 {[%clk 0:00:06]}  Rxc2 {[%clk 0:00:08]} 45. a4 {[%clk 0:00:06]}  Rgg2 {[%clk 0:00:08]} 46. a5 {[%clk 0:00:06]}  Kd7 {[%clk 0:00:07]} 47. a6 {[%clk 0:00:06]}  Nc4 {[%clk 0:00:08]} 48. Reb3 {[%clk 0:00:03]}  Nxb2 {[%clk 0:00:05]} 49. Rxb2 {[%clk 0:00:02]}  Rxb2+ {[%clk 0:00:03]} 50. Rxb2 {[%clk 0:00:02]}  Rxb2+ {[%clk 0:00:02]} 51. Kxb2 {[%clk 0:00:03]}  Kc6 {[%clk 0:00:03]} 52. Kc3 {[%clk 0:00:04]}  Kb6 {[%clk 0:00:03]} 53. Kd4 {[%clk 0:00:04]}  Kxa6 {[%clk 0:00:04]} 54. Kd5 {[%clk 0:00:05]}  Kb6 {[%clk 0:00:04]} 55. Kxd6 {[%clk 0:00:05]} 1/2-1/2


[Site "https://www.chess.com"]